bitfinex/quotes_BTCUSD_20240701
["timestamp","ask_amount","ask_price","bid_price","bid_amount"]
[1719796013015,0.70718104,63384.0,63383.0,0.00197816]
[1719796013227,0.19984206,63381.0,63376.0,0.2]
[1719796013427,0.16233898,63377.0,63376.0,0.36216392]
[1719796013575,0.32923898,63377.0,63376.0,0.36216392]
[1719796013796,0.56218104,63377.0,63376.0,0.37532851]
[1719796013957,0.46218104,63377.0,63376.0,0.37848388]
[1719796014158,0.46218104,63377.0,63376.0,0.4080478]
[1719796014159,0.66218104,63377.0,63376.0,0.4080478]
[1719796014483,1.03996604,63377.0,63376.0,0.4080478]
[1719796014683,1.6368405,63377.0,63376.0,0.3350172]
[1719796014861,0.9451004,63377.0,63376.0,0.3350172]
[1719796015064,0.84379694,63377.0,63376.0,0.3350172]
[1719796015255,0.64379694,63377.0,63376.0,0.3350172]
[1719796015907,0.86379694,63377.0,63376.0,0.3350172]
[1719796016105,1.06379694,63377.0,63376.0,0.3982182]
[1719796016314,1.53715294,63377.0,63376.0,0.3982182]
[1719796016559,0.86379694,63377.0,63376.0,0.3982182]
[1719796016874,1.06379694,63377.0,63376.0,0.3982182]
[1719796017083,0.14395488,63377.0,63376.0,1.0982182]
[1719796017287,0.0656,63384.0,63383.0,0.7]
[1719796017288,0.19984207,63384.0,63383.0,0.7]
[1719796017494,0.19984207,63384.0,63383.0,0.66216392]
[1719796017696,1e-08,63384.0,63383.0,0.66216392]
[1719796017970,0.19984207,63384.0,63383.0,0.66216392]
[1719796018353,0.56218105,63384.0,63383.0,0.66216392]
[1719796018799,0.57218105,63384.0,63383.0,0.66216392]
[1719796018930,0.57218105,63384.0,63383.0,0.16216392]
[1719796018931,0.51868105,63384.0,63383.0,0.16216392]
[1719796019128,0.53868105,63384.0,63383.0,0.16216392]
[1719796019373,0.51868105,63384.0,63383.0,0.16216392]
[1719796019711,0.73868105,63384.0,63383.0,0.16216392]
[1719796019909,0.51868105,63384.0,63383.0,0.16216392]
[1719796020314,0.73868105,63384.0,63383.0,0.16216392]
[1719796020733,0.73868105,63384.0,63383.0,0.16531929]
[1719796021083,1.05421805,63384.0,63383.0,0.16531929]
[1719796021289,0.89644905,63384.0,63383.0,0.16531929]
[1719796021493,0.51868105,63384.0,63383.0,1.144e-05]
[1719796021689,0.51868105,63384.0,63383.0,0.16217536]
[1719796022075,0.11883899,63384.0,63383.0,0.44217536]
[1719796022279,0.36218104,63384.0,63383.0,0.16217536]
[1719796022474,0.56218104,63384.0,63383.0,0.16217536]
[1719796022683,0.16233898,63384.0,63383.0,1.144e-05]
[1719796022883,0.16233898,63384.0,63383.0,0.77698144]
[1719796024676,0.16233898,63384.0,63383.0,0.76698144]
[1719796025088,0.36233898,63384.0,63383.0,0.76698144]
[1719796025296,0.56218104,63384.0,63383.0,0.76698144]
[1719796025522,0.78218104,63384.0,63383.0,0.76698144]
[1719796025728,1.03994904,63384.0,63383.0,0.74722921]
[1719796025941,1.35548604,63384.0,63383.0,0.74722921]
[1719796026145,1.35548604,63384.0,63383.0,0.70408429]
[1719796026567,1.35548604,63384.0,63366.0,0.0321]
[1719796026568,0.42,63367.0,63366.0,0.0321]
[1719796026782,0.78218104,63367.0,63366.0,0.19426392]
[1719796026982,0.76218104,63367.0,63366.0,0.19426392]
[1719796027184,0.76218104,63367.0,63366.0,0.25746792]
[1719796027388,0.98218104,63367.0,63366.0,0.25746792]
[1719796027593,0.78218104,63367.0,63366.0,0.25746792]
[1719796027805,0.98218104,63367.0,63366.0,0.25746792]
[1719796028006,1.08218104,63367.0,63366.0,0.22536792]
[1719796028848,0.88218104,63367.0,63366.0,0.22536792]
[1719796028998,1.08218104,63367.0,63366.0,0.22536792]
[1719796029440,1.24999104,63367.0,63366.0,0.16216392]
[1719796029786,1.24999104,63367.0,63351.0,0.0321]
[1719796029787,0.61984206,63352.0,63351.0,0.0161]
[1719796029991,0.61984206,63352.0,63336.0,0.7]
[1719796029992,0.22,63340.0,63336.0,0.01863715]
[1719796030181,0.22,63340.0,63329.0,0.78]
[1719796030182,0.16233898,63337.0,63333.0,0.016]
[1719796030302,0.2,63340.0,63334.0,0.13124469]
[1719796030503,0.2,63340.0,63337.0,0.063228]
[1719796030504,0.02,63339.0,63337.0,0.063228]
[1719796030752,0.2,63340.0,63338.0,0.40490447]
[1719796030753,0.22,63340.0,63338.0,0.40490447]
[1719796030950,0.6634845,63339.0,63338.0,0.27365]
[1719796031123,0.6634845,63339.0,63337.0,0.063228]
[1719796031124,0.57772506,63338.0,63337.0,0.063228]
[1719796031326,0.157894,63334.0,63326.0,0.01863715]
[1719796031524,0.02,63326.0,63322.0,0.01863715]
[1719796031725,0.10233899,63323.0,63322.0,0.16216392]
[1719796031958,0.30218105,63323.0,63322.0,0.29343918]
[1719796032164,0.30218105,63323.0,63322.0,0.35668418]
[1719796032165,0.32218105,63323.0,63322.0,0.35668418]
[1719796032710,0.52218105,63323.0,63322.0,0.35668418]
[1719796033670,0.30218105,63323.0,63322.0,0.35668418]
[1719796033876,0.10233899,63323.0,63322.0,0.35668418]
[1719796034078,0.16233898,63323.0,63322.0,0.57222975]
[1719796034274,0.16233898,63323.0,63322.0,0.5535926]
[1719796034633,0.16233898,63323.0,63322.0,0.57224788]
[1719796034799,0.16233898,63323.0,63322.0,0.35667925]
[1719796035003,0.38233898,63323.0,63322.0,0.35669302]
[1719796035163,0.16233898,63323.0,63322.0,0.35669302]
[1719796035374,0.16233898,63323.0,63322.0,0.22540892]
[1719796035592,0.16233898,63323.0,63322.0,0.35668134]
[1719796035819,0.16233898,63323.0,63322.0,0.55358997]
[1719796036225,0.16233898,63323.0,63322.0,0.35668134]
[1719796037077,0.16233898,63323.0,63322.0,0.19451742]
[1719796037260,0.36233898,63323.0,63322.0,0.19451742]
[1719796037465,0.16233898,63323.0,63322.0,0.19452516]
[1719796037964,0.16233898,63323.0,63322.0,0.19453527]
[1719796038382,0.16233898,63323.0,63322.0,0.063245]
[1719796038732,0.16233898,63323.0,63322.0,0.19453293]
[1719796040486,0.16233898,63323.0,63322.0,0.19452055]
[1719796040912,0.16233898,63323.0,63322.0,0.19544455]
[1719796041459,0.15833898,63323.0,63322.0,0.19544455]
[1719796041628,0.35833898,63323.0,63322.0,0.19544455]
[1719796042091,0.15833898,63323.0,63322.0,0.19544455]
[1719796042526,0.15833898,63323.0,63322.0,0.95236894]
[1719796042734,0.15833898,63323.0,63322.0,1.46196988]
[1719796042943,0.15833898,63323.0,63322.0,0.86612158]
[1719796043373,0.15833898,63323.0,63322.0,1.19418861]
[1719796043548,0.15833898,63323.0,63322.0,0.86604806]
[1719796043692,0.15833898,63323.0,63322.0,0.66918262]
[1719796045378,0.15833898,63323.0,63322.0,0.68784414]
[1719796045571,0.15833898,63323.0,63322.0,1.1941922]
[1719796045776,0.15833898,63323.0,63322.0,1.6679592]
[1719796045985,0.21864498,63349.0,63334.0,0.7]
[1719796046223,0.16233898,63340.0,63339.0,0.15788]
[1719796046443,0.16233898,63340.0,63339.0,0.947281]
[1719796046646,0.16233898,63340.0,63339.0,1.51816511]
[1719796046854,0.16233898,63340.0,63339.0,1.2875985]
[1719796047067,0.16233898,63340.0,63339.0,1.35320373]
[1719796047456,0.16233898,63340.0,63339.0,1.19532373]
[1719796047864,0.16233898,63340.0,63339.0,1.1297185]
[1719796048076,0.16233898,63340.0,63339.0,1.19532504]
[1719796048318,0.16233898,63340.0,63339.0,2.11137062]
[1719796048510,0.16233898,63340.0,63339.0,2.0193382]
[1719796048891,0.16233898,63340.0,63339.0,2.08841102]
[1719796049093,0.16233898,63340.0,63339.0,2.0193179]
[1719796049302,0.16233898,63340.0,63339.0,1.1953148]
[1719796049639,0.16233898,63340.0,63339.0,1.73804541]
[1719796049939,0.16233898,63340.0,63339.0,2.82718862]
[1719796050058,0.19835047,63372.0,63357.0,0.7]
[1719796050267,0.12,63374.0,63358.0,0.44550875]
[1719796050268,0.01,63373.0,63358.0,0.44550875]
[1719796050576,0.21835047,63372.0,63359.0,0.13119207]
[1719796050794,0.02,63370.0,63360.0,0.77016762]
[1719796050990,0.19835047,63372.0,63361.0,0.13119207]
[1719796051198,0.325164,63386.0,63361.0,0.13119207]
[1719796051199,0.01,63389.0,63370.0,0.7]
[1719796051397,0.0134832,63395.0,63371.0,0.77006522]
[1719796051398,0.02,63394.0,63371.0,0.77006522]
[1719796051605,0.21673047,63387.0,63372.0,0.1311705]
[1719796051801,0.22673047,63387.0,63373.0,0.7669005]
[1719796052006,0.20673047,63387.0,63374.0,0.1311561]
[1719796052283,0.20673047,63387.0,63350.0,0.74597574]
[1719796052284,0.21835047,63363.0,63350.0,0.74597574]
[1719796052485,0.21835047,63363.0,63356.0,0.48811044]
[1719796052486,0.10130346,63359.0,63356.0,0.48811044]
[1719796052729,0.02,63357.0,63356.0,0.16216392]
[1719796053064,0.21835047,63351.0,63342.0,0.7]
[1719796053353,0.21835047,63351.0,63343.0,0.48929]
[1719796053584,0.16233898,63345.0,63343.0,0.48929]
[1719796054005,0.38068945,63344.0,63343.0,0.48929]
[1719796054208,0.02,63341.0,63324.0,0.7]
[1719796054412,0.798807,63351.0,63324.0,0.7]
[1719796054413,0.16233898,63333.0,63325.0,0.48811044]
[1719796054615,0.16233898,63333.0,63325.0,0.47369]
[1719796055248,0.16233898,63333.0,63332.0,0.7]
[1719796055465,0.16233898,63333.0,63332.0,0.86216392]
[1719796055673,0.16233898,63333.0,63332.0,1.33585392]
[1719796056301,0.16233898,63333.0,63332.0,0.63585392]
[1719796059233,0.16233898,63333.0,63332.0,1.33585392]
[1719796059632,0.16233898,63333.0,63332.0,0.63585392]
[1719796060434,0.16233898,63333.0,63332.0,0.47369]
[1719796062127,0.38233898,63333.0,63332.0,0.47369]
[1719796062330,0.16233898,63333.0,63332.0,0.47369]
[1719796064208,0.37733898,63333.0,63332.0,0.47369]
[1719796064409,0.63523398,63333.0,63332.0,0.47369]
[1719796064589,1.12842498,63333.0,63332.0,0.47369]
[1719796064786,1.44421598,63333.0,63332.0,0.41325729]
[1719796064998,0.21835047,63313.0,63312.0,0.036307]
[1719796065194,0.21835047,63313.0,63293.0,0.4549]
[1719796065195,0.02,63311.0,63298.0,0.2]
[1719796065443,0.36068945,63313.0,63298.0,0.2]
[1719796065444,0.16233898,63305.0,63298.0,0.2]
[1719796065824,1e-08,63305.0,63303.0,0.05326]
[1719796066765,1e-08,63305.0,63304.0,0.4739]
[1719796066969,0.02000001,63305.0,63304.0,0.4739]
[1719796067176,0.02000001,63305.0,63294.0,0.5]
[1719796067377,0.16233898,63301.0,63294.0,0.66216392]
[1719796067579,0.16233898,63301.0,63295.0,0.47394]
[1719796067777,0.19835047,63299.0,63295.0,0.537206]
[1719796067975,0.16233898,63298.0,63295.0,0.537206]
[1719796068848,0.21835047,63297.0,63295.0,0.537206]
[1719796069006,0.16233898,63296.0,63295.0,0.537206]
[1719796072456,0.1,63313.0,63298.0,0.2]
[1719796072652,0.16233898,63308.0,63299.0,0.47394]
[1719796072873,0.16233898,63308.0,63299.0,0.46894]
[1719796073101,0.1,63307.0,63299.0,0.46894]
[1719796073299,0.16233898,63306.0,63304.0,0.7]
[1719796073531,0.16233898,63306.0,63305.0,0.4789]
[1719796074928,0.16233898,63306.0,63305.0,0.479824]
[1719796076624,0.16233898,63306.0,63305.0,0.679824]
[1719796077329,0.16233898,63306.0,63305.0,0.479824]
[1719796078750,0.18233898,63306.0,63305.0,0.479824]
[1719796078946,0.38233898,63306.0,63305.0,0.479824]
[1719796079147,0.18233898,63306.0,63305.0,0.479824]
[1719796079543,0.19835047,63323.0,63312.0,0.7]
[1719796079737,0.16233898,63322.0,63313.0,0.48199802]
[1719796080236,0.16233898,63322.0,63313.0,0.63994202]
[1719796080541,0.16233898,63322.0,63313.0,0.48199802]
[1719796082381,0.16233898,63322.0,63314.0,0.1312752]
[1719796082597,0.16233898,63322.0,63315.0,0.48197798]
[1719796083520,0.08130346,63321.0,63315.0,0.47882]
[1719796083768,0.19835047,63323.0,63315.0,0.47882]
[1719796083769,0.16233898,63320.0,63315.0,0.47882]
[1719796083964,0.38068945,63316.0,63315.0,0.47882]
[1719796084203,0.58068945,63316.0,63315.0,7.47882]
[1719796085065,0.48068945,63316.0,63315.0,7.47882]
[1719796085262,0.46068945,63316.0,63315.0,7.47882]
[1719796085681,0.26233898,63316.0,63315.0,7.47882]
[1719796086315,0.28233898,63316.0,63315.0,7.47882]
[1719796086723,0.48233898,63316.0,63315.0,7.47882]
[1719796086921,0.28233898,63316.0,63315.0,7.47882]
[1719796087119,0.48068945,63316.0,63315.0,7.47882]
[1719796087520,0.68068945,63316.0,63315.0,7.47882]
[1719796088547,0.68068945,63316.0,63315.0,1.27144908]
[1719796088548,1.47037645,63316.0,63315.0,1.27144908]
[1719796088939,1.48037645,63316.0,63315.0,1.27144908]
[1719796089320,1.56430525,63316.0,63315.0,1.27144908]
[1719796089746,1.56430525,63316.0,63315.0,1.19904908]
[1719796089747,1.48037645,63316.0,63315.0,1.19904908]
[1719796089941,1.47037645,63316.0,63315.0,1.19904908]
[1719796090146,0.68068945,63316.0,63315.0,1.19904908]
[1719796090322,0.68068945,63316.0,63315.0,1.18945908]
[1719796090678,1.48930261,63316.0,63315.0,1.18945908]
[1719796090877,1.49930261,63316.0,63315.0,1.18945908]
[1719796091008,1.49930261,63316.0,63315.0,1.17919908]
[1719796091426,1.58323878,63316.0,63315.0,1.14370908]
[1719796091632,1.58323878,63316.0,63315.0,1.11799908]
[1719796091633,2.06651378,63316.0,63315.0,1.11799908]
[1719796091829,2.06651378,63316.0,63315.0,1.06899908]
[1719796092033,2.06651378,63316.0,63288.0,0.48811044]
[1719796092034,0.21835047,63290.0,63288.0,0.48811044]
[1719796092396,0.16233898,63289.0,63288.0,0.65027436]
[1719796092573,0.16233898,63289.0,63288.0,0.16216392]
[1719796092801,0.18233898,63289.0,63288.0,0.16216392]
[1719796093031,0.16233898,63289.0,63288.0,0.16216392]
[1719796093663,0.16233898,63289.0,63288.0,0.63618392]
[1719796095118,0.18233898,63289.0,63288.0,0.63618392]
[1719796095318,0.16233898,63289.0,63288.0,0.63618392]
[1719796097515,0.18233898,63289.0,63288.0,0.63618392]
[1719796097764,0.16233898,63289.0,63288.0,0.47402]
[1719796099857,0.18233898,63289.0,63288.0,0.47402]
[1719796100051,0.16233898,63289.0,63288.0,0.47402]
[1719796102106,0.36068945,63289.0,63288.0,0.47402]
[1719796103318,0.38068945,63289.0,63288.0,0.60536253]
[1719796103731,0.38068945,63289.0,63288.0,0.47402]
[1719796103933,0.36068945,63289.0,63288.0,0.47402]
[1719796104152,0.16233898,63289.0,63288.0,0.47402]
[1719796104898,0.68068945,63289.0,63288.0,0.47402]
[1719796105485,0.68068945,63289.0,63288.0,0.455501]
[1719796106834,0.68068945,63289.0,63288.0,0.456425]
[1719796107040,0.68068945,63289.0,63288.0,0.377775]
[1719796107276,0.68068945,63289.0,63284.0,0.000924]
[1719796107277,0.22,63285.0,63284.0,0.000924]
[1719796107509,0.48233898,63285.0,63284.0,0.16216392]
[1719796108166,0.28233898,63285.0,63284.0,0.16216392]
[1719796108364,0.26233898,63285.0,63284.0,0.16216392]
[1719796108806,0.28233898,63285.0,63284.0,0.16216392]
[1719796109019,0.68068945,63285.0,63284.0,0.16216392]
[1719796109224,0.26233898,63285.0,63284.0,0.16216392]
[1719796109363,0.68068945,63285.0,63284.0,0.16216392]
[1719796110723,0.46068945,63285.0,63284.0,0.16216392]
[1719796111165,0.26233898,63285.0,63284.0,0.16216392]
[1719796111367,0.48068945,63285.0,63284.0,0.29265392]
[1719796111515,0.46068945,63285.0,63284.0,0.29265392]
[1719796112116,0.16233898,63285.0,63284.0,0.29265392]
[1719796112520,0.16233898,63285.0,63284.0,0.13049]
[1719796112728,0.2,63301.0,63284.0,0.13049]
[1719796112729,0.19835047,63312.0,63294.0,0.15799]
[1719796112926,0.65044942,63311.0,63295.0,0.2916177]
[1719796113127,0.16233898,63311.0,63296.0,0.13131412]
[1719796113329,0.16233898,63311.0,63294.0,0.16216392]
[1719796113330,0.16233898,63307.0,63297.0,0.13047]
[1719796114083,0.16233898,63307.0,63298.0,0.13130787]
[1719796114285,0.16233898,63307.0,63299.0,0.13046]
[1719796114501,0.16233898,63307.0,63299.0,0.13361894]
[1719796114714,0.16233898,63307.0,63300.0,0.13130352]
[1719796114918,0.16233898,63307.0,63301.0,0.26176352]
[1719796115122,0.16233898,63307.0,63302.0,0.13446225]
[1719796115335,0.16233898,63307.0,63304.0,0.2658]
[1719796115540,0.16233898,63307.0,63305.0,0.13045]
[1719796116844,0.02814249,63316.0,63305.0,0.13045]
[1719796116845,0.02814249,63316.0,63315.0,0.15794]
[1719796116846,0.00942897,63316.0,63315.0,0.15794]
[1719796116957,0.00942897,63316.0,63315.0,0.58496101]
[1719796117156,0.00942897,63316.0,63315.0,0.55513129]
[1719796117358,0.00942897,63316.0,63315.0,0.29259392]
[1719796117590,0.17176795,63316.0,63315.0,0.29259392]
[1719796118210,0.00942897,63316.0,63315.0,0.45053392]
[1719796118384,0.00942897,63316.0,63315.0,0.29259392]
[1719796118589,0.00942897,63316.0,63315.0,1.08545172]
[1719796118798,0.00942897,63316.0,63315.0,1.21671422]
[1719796119218,0.19835047,63339.0,63326.0,0.08]
[1719796119442,0.19835047,63339.0,63327.0,0.1304]
[1719796119443,0.16233898,63338.0,63327.0,0.1304]
[1719796119620,0.16233898,63338.0,63331.0,0.157898]
[1719796119821,0.16233898,63338.0,63332.0,0.1335472]
[1719796120643,0.0045133,63347.0,63341.0,0.157874]
[1719796120844,0.0045133,63347.0,63342.0,0.29139946]
[1719796121252,0.0045133,63347.0,63342.0,0.88704341]
[1719796121448,0.0045133,63347.0,63342.0,1.20278941]
[1719796121903,0.0045133,63347.0,63342.0,1.87781998]
[1719796122079,0.0045133,63347.0,63346.0,0.989315]
[1719796122308,0.0045133,63347.0,63346.0,1.119685]
[1719796122717,0.0045133,63347.0,63346.0,1.435411]
[1719796122923,0.0045133,63347.0,63346.0,1.119685]
[1719796123097,0.0045133,63347.0,63346.0,1.25086911]
[1719796123297,0.0045133,63347.0,63346.0,1.119685]
[1719796124485,0.0045133,63347.0,63346.0,1.435411]
[1719796124839,0.0045133,63347.0,63346.0,1.119685]
[1719796125489,0.0045133,63347.0,63346.0,0.13037]
[1719796128079,0.16233898,63365.0,63353.0,0.157843]
[1719796128321,0.1,63364.0,63354.0,0.13350599]
[1719796128527,0.16233898,63363.0,63354.0,0.13350599]
[1719796128950,0.16233898,63363.0,63355.0,0.157839]
[1719796129165,0.00841,63370.0,63357.0,0.08]
[1719796129365,0.00841,63370.0,63363.0,0.15782]
[1719796129366,0.16233898,63369.0,63363.0,0.15782]
[1719796129592,0.16233898,63369.0,63364.0,0.13348564]
[1719796129713,0.16233898,63369.0,63364.0,0.29564956]
[1719796129913,0.27965393,63365.0,63364.0,0.29249392]
[1719796130146,0.46199291,63365.0,63364.0,0.29249392]
[1719796130366,0.66199291,63365.0,63364.0,0.29249392]
[1719796130575,0.46199291,63365.0,63364.0,0.29249392]
[1719796130777,0.16233898,63365.0,63364.0,0.29249392]
[1719796131195,0.36068945,63365.0,63364.0,0.29249392]
[1719796131428,0.16233898,63365.0,63364.0,0.29249392]
[1719796131618,0.68068945,63365.0,63364.0,0.29249392]
[1719796132020,0.46068945,63365.0,63364.0,0.29249392]
[1719796132402,0.26233898,63365.0,63364.0,0.29249392]
[1719796132804,0.28233898,63365.0,63364.0,0.29249392]
[1719796133005,0.26233898,63365.0,63364.0,0.29249392]
[1719796133607,0.28233898,63365.0,63364.0,0.29249392]
[1719796133863,0.26233898,63365.0,63364.0,0.29249392]
[1719796134112,0.28233898,63365.0,63364.0,0.29249392]
[1719796134520,0.26233898,63365.0,63364.0,0.29249392]
[1719796134703,0.48233898,63365.0,63364.0,0.29249392]
[1719796134916,0.26233898,63365.0,63364.0,0.29249392]
[1719796135303,0.48233898,63365.0,63364.0,0.13033]
[1719796135530,0.28233898,63365.0,63364.0,0.13033]
[1719796135642,0.48233898,63365.0,63364.0,0.13033]
[1719796136052,0.26233898,63365.0,63364.0,0.13033]
[1719796136289,0.68068945,63365.0,63364.0,0.13033]
[1719796137625,1.15413545,63365.0,63364.0,0.13033]
[1719796137866,0.83850445,63365.0,63364.0,0.13033]
[1719796138069,1.15413545,63365.0,63364.0,0.13033]
[1719796138423,0.83850445,63365.0,63364.0,0.13033]
[1719796139007,0.68068945,63365.0,63364.0,0.13033]
[1719796139769,0.68152945,63365.0,63364.0,0.13033]
[1719796140919,0.84934445,63365.0,63364.0,0.13033]
[1719796141134,1.16497545,63365.0,63364.0,0.13033]
[1719796141338,1.48060645,63365.0,63364.0,0.13033]
[1719796141537,1.47060645,63365.0,63364.0,0.13033]
[1719796141738,0.68152945,63365.0,63364.0,0.13033]
[1719796141940,1.48060645,63365.0,63364.0,0.13033]
[1719796142546,1.48060645,63365.0,63364.0,0.1126]
[1719796143208,0.26317898,63365.0,63364.0,0.1126]
[1719796143346,0.68152945,63365.0,63364.0,0.1126]
[1719796144244,0.16317898,63365.0,63364.0,0.1126]
[1719796144442,0.05766103,63377.0,63364.0,0.1126]
[1719796144756,0.16233898,63365.0,63364.0,0.27476392]
[1719796147668,0.22000001,63365.0,63364.0,0.27476392]
[1719796148064,0.32000001,63365.0,63364.0,0.27476392]
[1719796148313,0.26233898,63365.0,63364.0,0.27476392]
[1719796148641,0.32000001,63365.0,63364.0,0.27476392]
[1719796149730,0.32000001,63365.0,63364.0,0.27469023]
[1719796150098,0.32000001,63365.0,63364.0,0.84199023]
[1719796150099,0.26233898,63365.0,63364.0,0.84199023]
[1719796150294,0.26233898,63365.0,63364.0,0.67982631]
[1719796150452,0.26233898,63365.0,63364.0,1.00782036]
[1719796150813,0.16233898,63365.0,63364.0,0.44422036]
[1719796152062,0.16233898,63365.0,63361.0,0.3078]
[1719796152063,0.16233898,63365.0,63361.0,0.02252036]
[1719796152348,0.16233898,63364.0,63362.0,0.00315601]
[1719796152904,0.16233898,63364.0,63362.0,0.00315604]
[1719796153110,0.01753347,63387.0,63363.0,0.01]
[1719796153111,0.00841,63380.0,63363.0,0.01]
[1719796153317,0.16233898,63379.0,63366.0,0.167812]
[1719796153841,0.16233898,63379.0,63371.0,0.01]
[1719796154015,0.16233898,63379.0,63372.0,0.00315532]
[1719796154228,0.16233898,63379.0,63374.0,0.01]
[1719796154401,0.16233898,63379.0,63376.0,0.01]
[1719796154599,0.16233898,63379.0,63371.0,0.16216392]
[1719796155005,0.16233898,63379.0,63372.0,0.32875032]
[1719796155375,0.16233898,63379.0,63373.0,0.2425]
[1719796155555,0.16233898,63379.0,63374.0,0.00315527]
[1719796155751,0.16233898,63379.0,63373.0,0.2425]
[1719796157158,0.16233898,63379.0,63374.0,0.01]
[1719796158154,0.16233898,63379.0,63376.0,0.01]
[1719796158374,0.16233898,63379.0,63378.0,0.01]
[1719796158582,0.00841,63380.0,63378.0,0.21815722]
[1719796158751,0.01,63398.0,63384.0,0.01]
[1719796158953,0.17233898,63395.0,63390.0,0.01858927]
[1719796159318,0.17233898,63395.0,63391.0,0.02174405]
[1719796159450,0.17233898,63395.0,63391.0,0.01858927]
[1719796159451,0.16233898,63395.0,63391.0,0.01858927]
[1719796159817,0.00639985,63400.0,63392.0,0.01858927]
[1719796159818,0.16233898,63394.0,63392.0,0.01858927]
[1719796160174,0.16233898,63394.0,63393.0,0.01858927]
[1719796160589,0.16233898,63394.0,63392.0,0.01858927]
[1719796160794,0.5401006,63406.0,63392.0,0.01858927]
[1719796160965,0.5401006,63406.0,63390.0,0.16216392]
[1719796160966,0.05766103,63404.0,63394.0,0.01858927]
[1719796161165,0.5401006,63406.0,63395.0,0.02174356]
[1719796161166,0.16233898,63403.0,63395.0,0.02174356]
[1719796161348,0.16233898,63403.0,63396.0,0.01858927]
[1719796161552,0.0191006,63406.0,63399.0,0.01858927]
[1719796161788,0.16233898,63405.0,63401.0,0.01858927]
[1719796162180,0.16233898,63405.0,63399.0,0.18075319]
[1719796162408,0.16233898,63405.0,63399.0,0.16216392]
[1719796162867,0.22000001,63405.0,63399.0,0.16216392]
[1719796162998,0.16233898,63405.0,63399.0,0.16216392]
[1719796163201,0.05766103,63401.0,63399.0,0.16216392]
[1719796163421,0.0126571,63410.0,63399.0,0.16216392]
[1719796163422,0.16233898,63400.0,63399.0,0.16216392]
[1719796163620,0.22000001,63400.0,63399.0,0.16216392]
[1719796164907,0.32000001,63400.0,63399.0,0.16216392]
[1719796165107,0.65190001,63400.0,63399.0,0.16216392]
[1719796165676,1.01482801,63400.0,63399.0,0.16216392]
[1719796165870,1.35028501,63400.0,63399.0,0.16216392]
[1719796166046,1.66574201,63400.0,63399.0,0.16216392]
[1719796166503,0.05766103,63380.0,63379.0,0.04608402]
[1719796166721,0.05766103,63379.0,63377.0,0.04608402]
[1719796166931,0.16233898,63378.0,63377.0,0.16216392]
[1719796169457,0.22000001,63378.0,63377.0,0.16216392]
[1719796170490,0.32000001,63378.0,63377.0,0.16216392]
[1719796170911,0.52520001,63378.0,63377.0,0.16216392]
[1719796171330,0.52520001,63378.0,63357.0,0.04614269]
[1719796171331,0.05766103,63374.0,63357.0,0.04614269]
[1719796171533,0.05766103,63369.0,63363.0,0.48811044]
[1719796171734,0.16233898,63368.0,63364.0,0.00315606]
[1719796171960,0.16233898,63368.0,63364.0,0.16216392]
[1719796172383,0.16233898,63368.0,63365.0,0.00315602]
[1719796172566,0.1,63377.0,63365.0,0.02315602]
[1719796172567,0.05766103,63376.0,63365.0,0.02315602]
[1719796172787,0.3051,63387.0,63365.0,0.02315602]
[1719796172788,0.05766103,63381.0,63367.0,0.08]
[1719796172916,0.16233898,63380.0,63372.0,0.5491]
[1719796173128,0.05766103,63382.0,63372.0,0.5491]
[1719796173129,0.05766103,63391.0,63374.0,0.02]
[1719796173327,0.05766103,63389.0,63377.0,0.02]
[1719796173532,0.05766103,63389.0,63374.0,0.02]
[1719796173533,0.16233898,63388.0,63374.0,0.02]
[1719796174322,0.16233898,63388.0,63373.0,0.02]
[1719796174533,0.16233898,63388.0,63372.0,0.71126392]
[1719796174732,0.22000001,63388.0,63372.0,0.72126392]
[1719796174932,0.05766103,63387.0,63372.0,0.72126392]
[1719796175301,0.15733898,63388.0,63372.0,0.71126392]
[1719796175302,0.16233898,63386.0,63372.0,0.71126392]
[1719796175503,0.22000001,63386.0,63372.0,0.71126392]
[1719796175742,0.05766103,63381.0,63372.0,0.71126392]
[1719796175950,0.10055162,63394.0,63372.0,0.71126392]
[1719796175951,0.16233898,63380.0,63372.0,0.71126392]
[1719796176556,0.16233898,63380.0,63373.0,0.00315539]
[1719796177543,0.16233898,63380.0,63372.0,0.71126392]
[1719796177544,0.48811044,63374.0,63372.0,0.15531931]
[1719796177749,0.05766103,63369.0,63354.0,0.74621044]
[1719796177912,0.05766103,63364.0,63354.0,0.42026392]
[1719796178107,0.05766103,63362.0,63354.0,0.42026392]
[1719796178517,1.0,63360.0,63355.0,0.00315613]
[1719796178697,1.0,63360.0,63359.0,0.02]
[1719796178932,1.0,63360.0,63354.0,0.42026392]
[1719796179099,1.0,63360.0,63357.0,0.02]
[1719796179303,1.0,63360.0,63355.0,0.02315612]
[1719796179508,1.0,63360.0,63355.0,0.00315612]
[1719796179720,1.0,63360.0,63359.0,0.23783]
[1719796179919,1.0,63360.0,63359.0,0.08]
[1719796180936,1.0,63360.0,63354.0,0.42026392]
[1719796181310,1.0,63360.0,63355.0,0.02]
[1719796181542,1.0,63360.0,63354.0,0.42026392]
[1719796181952,1.16233898,63360.0,63354.0,0.42026392]
[1719796182163,1.0,63360.0,63355.0,0.00315626]
[1719796182373,1.0,63360.0,63355.0,0.02315626]
[1719796182541,1.0,63360.0,63355.0,0.00315626]
[1719796182699,1.0,63360.0,63355.0,0.02315626]
[1719796182908,1.0,63360.0,63355.0,0.00315626]
[1719796183139,1.0,63360.0,63356.0,0.00315628]
[1719796183361,1.0,63360.0,63359.0,0.08]
[1719796185110,1.0,63360.0,63354.0,0.42026392]
[1719796186106,1.16233898,63360.0,63354.0,0.42026392]
[1719796187511,1.16233898,63360.0,63354.0,0.41526392]
[1719796188123,1.0,63360.0,63354.0,0.41526392]
[1719796189873,0.16233898,63359.0,63354.0,0.16216392]
[1719796190083,0.16233898,63359.0,63355.0,0.00315645]
[1719796190767,0.16233898,63359.0,63354.0,0.16216392]
[1719796190990,0.05766103,63355.0,63354.0,0.16216392]
[1719796191225,0.22000001,63355.0,63354.0,0.16216392]
[1719796191591,0.16233898,63355.0,63354.0,0.16216392]
[1719796191986,0.22000001,63355.0,63354.0,0.16216392]
[1719796192231,0.16233898,63355.0,63354.0,0.16216392]
[1719796192407,0.22000001,63355.0,63354.0,0.16216392]
[1719796193155,0.16233898,63355.0,63354.0,0.16216392]
[1719796193576,0.22000001,63355.0,63354.0,0.16216392]
[1719796193786,0.16233898,63355.0,63354.0,0.16216392]
[1719796194433,0.22000001,63355.0,63354.0,0.16216392]
[1719796196082,0.16233898,63355.0,63353.0,0.000924]
[1719796196310,0.16233898,63354.0,63353.0,0.000924]
[1719796196419,0.16233898,63354.0,63353.0,0.16308792]